fUSD/lending_fUSD_20250611
["ID","MTS","AMOUNT","RATE_DAILY","PERIOD"]
[365442098,1749675170927,600.0,0.00016639,2]
[365442099,1749675172512,600.0,0.00017735,2]
[365442100,1749675192647,500.0,0.00016365,2]
[365442101,1749675235471,166.7,0.0001795,2]
[365442103,1749675311425,200.0,0.00017462,2]
[365442104,1749675318363,4555.6,0.00024656,120]
[365442105,1749675363465,64919.7795122,0.00024649,120]
[365442106,1749675400524,150.0,0.0001795,7]
[365442107,1749675404168,500.0,0.00016365,2]
[365442108,1749675410141,900.0,0.00015269,2]
[365442109,1749675411727,900.0,0.00016639,2]
[365442110,1749675413354,900.0,0.00017735,2]
[365442111,1749675478356,19396.80105568,0.0001795,2]
[365442112,1749675478380,1606.05894432,0.0001795,2]
[365442114,1749675529767,387.55,0.00013699,2]
[365442115,1749675550144,1000.00000008,0.0001795,2]
[365442118,1749675622251,500.0,0.00016365,2]
[365442119,1749675741652,2751.0,0.00017896,2]
[365442120,1749675759584,175.61,0.0001431,2]
[365442121,1749675803246,1012.26,0.00017904,2]
[365442122,1749675823016,205.05606196,0.00017967,2]
[365442123,1749675849228,1156.85,0.00015993,2]
[365442124,1749675911557,201.51721791,0.00017877,2]
[365442125,1749675934915,183.04,0.00016712,2]
[365442126,1749675960114,1000.0,0.00024658,120]
[365442127,1749675990092,705.53,0.00018,2]
[365442128,1749676022395,1397.7,0.00017884,2]
[365442129,1749676024815,367.53,0.00017884,2]
[365442130,1749676037130,-204.0,0.0001804,2]
[365442131,1749676037152,-204.0,0.0001804,2]
[365442132,1749676037173,-617.4,0.00018042,2]
[365442133,1749676037195,-293.31587694,0.00018066,2]
[365442134,1749676041121,-906.68412306,0.00018066,2]
[365442135,1749676041142,-300.0,0.00018066,2]
[365442136,1749676041162,-3568.38,0.00018067,2]
[365442137,1749676041184,-1000.0,0.00018067,2]
[365442138,1749676041204,-244.86,0.00018067,2]
[365442139,1749676041226,-1136.87,0.00018067,2]
[365442140,1749676041246,-165.8,0.00018085,2]
[365442141,1749676041266,-250.0,0.00018118,2]
[365442142,1749676041287,-1059.33707266,0.00018257,2]
[365442143,1749676042352,-97.51292734,0.00018257,2]
[365442144,1749676042373,-300.0,0.00018299,2]
[365442145,1749676042395,-899.77858055,0.00018342,2]
[365442167,1749676231671,-184.0,0.0001801,2]
[365442168,1749676231682,-142.05,0.00018011,2]
[365442169,1749676231727,-265.08565925,0.00018011,2]
[365442173,1749676237375,-7906.01765501,0.00018011,2]
[365442174,1749676237432,-5487.28945017,0.00018011,2]
[365442175,1749676237490,-2517.8,0.00018011,2]
[365442176,1749676237502,-1852.70723557,0.00018011,2]
[365442177,1749676237511,-666.0,0.00018018,2]
[365442178,1749676237520,-5592.24534071,0.00018102,2]
[365442179,1749676237531,-2300.0499699,0.00018102,2]
[365442185,1749676239585,-10145.48468939,0.00018102,2]
[365442186,1749676239594,-2023.24141945,0.00018342,2]
[365442187,1749676239603,-300.0,0.00018342,2]
[365442188,1749676239613,-894.02,0.00018356,2]
[365442189,1749676239624,-239.39685384,0.00018377,2]
[365442190,1749676239634,-338.98365021,0.00018377,2]
[365442191,1749676239643,-500.0,0.00018377,2]
[365442192,1749676239652,-400.85459496,0.00018377,2]
[365442193,1749676239663,-509.18306179,0.00018377,2]
[365442194,1749676239672,-526.25959699,0.00018378,2]
[365442195,1749676239684,-5387.89040301,0.00018378,2]
[365442196,1749676239694,-305.53,0.00018378,2]
[365442197,1749676239703,-303.01,0.00018378,2]
[365442198,1749676239713,-204.0,0.00018393,2]
[365442199,1749676239722,-151.0,0.00018511,2]
[365442200,1749676239731,-151.0,0.00018522,2]
[365442201,1749676239741,-500.0,0.00018522,2]
[365442202,1749676239750,-500.0,0.00018522,2]
[365442203,1749676239759,-500.0,0.00018522,2]
[365442204,1749676239768,-668.65185757,0.00018522,2]
[365442205,1749676239778,-1957.856,0.00018522,2]
[365442206,1749676239787,-500.0,0.00018522,2]
[365442207,1749676239796,-500.0,0.00018522,2]
[365442208,1749676239805,-500.0,0.00018522,2]
[365442209,1749676239814,-500.0,0.00018522,2]
[365442210,1749676239823,-500.0,0.00018522,2]
[365442211,1749676239833,-500.0,0.00018522,2]
[365442212,1749676239843,-500.0,0.00018522,2]
[365442213,1749676239852,-330.39161282,0.00018522,2]
[365442214,1749676239864,-67.47996786,0.00018522,2]
[365442215,1749676239873,-151.0,0.00018522,2]
[365442216,1749676239883,-151.0,0.00018522,2]
[365442217,1749676239892,-151.0,0.00018522,2]
[365442218,1749676239902,-151.0,0.00018522,2]
[365442219,1749676239911,-151.0,0.00018522,2]
[365442220,1749676239920,-289.31187968,0.00018522,2]
[365442221,1749676239930,-207.4,0.00018522,2]
[365442222,1749676239939,-239.66343576,0.00018522,2]
[365442223,1749676239958,-60.33656424,0.00018522,2]
[365442224,1749676239967,-300.0,0.00018522,2]
[365442225,1749676239976,-300.0,0.00018522,2]
[365442226,1749676239985,-300.0,0.00018522,2]
[365442227,1749676239995,-300.0,0.00018522,2]
[365442228,1749676240005,-2030.296672,0.00018577,2]
[365442229,1749676240014,-1694.30550136,0.00018632,2]
[365442230,1749676240024,-900.0,0.00018831,2]
[365442231,1749676240033,-200.0,0.000189,6]
[365442232,1749676240043,-201.15591568,0.000189,2]
[365442233,1749676240053,-201.15591562,0.00018963,2]
[365442234,1749676240062,-250.0,0.00019,2]
[365442235,1749676240072,-300.89,0.00019017,2]
[365442236,1749676240082,-300.0,0.00019022,2]
[365442237,1749676240091,-201.15591562,0.00019025,2]
[365442238,1749676240100,-304.57,0.00019026,2]
[365442239,1749676240110,-500.0,0.00019041,2]
[365442240,1749676240120,-301.52,0.00019043,2]
[365442241,1749676240129,-305.77,0.00019043,2]
[365442242,1749676240138,-305.91,0.00019071,2]
[365442243,1749676240147,-1316.93351548,0.00019078,2]
[365442244,1749676240158,-333.68813821,0.00019078,2]
[365442245,1749676240167,-787.17299071,0.00019078,2]
[365442246,1749676240175,-2317.42122108,0.00019078,2]
[365442247,1749676240191,-53494.24577892,0.00019078,2]
[365442248,1749676240200,-201.15591562,0.00019088,2]
[365442249,1749676240210,-500.0,0.000191,6]
[365442250,1749676240220,-500.0,0.00019105,2]
[365442251,1749676240229,-894.690344,0.00019115,2]
[365442252,1749676240238,-787.1729907,0.00019121,2]
[365442253,1749676240249,-201.15591562,0.0001915,2]
[365442254,1749676240259,-787.1729907,0.00019163,2]
[365442255,1749676240268,-219.58,0.00019168,2]
[365442256,1749676240278,-219.58,0.00019168,2]
[365442257,1749676240287,-219.58,0.00019168,2]
[365442258,1749676240297,-1090.49,0.00019168,2]
[365442259,1749676240306,-1650.62165361,0.00019169,2]
[365442260,1749676240316,-502.25713157,0.00019173,2]
[365442261,1749676240326,-500.0,0.00019173,2]
[365442262,1749676240336,-500.0,0.00019173,2]
[365442263,1749676240346,-186.1186013,0.00019177,2]
[365442264,1749676240355,-154.43199625,0.00019177,2]
[365442265,1749676240366,-222.00106694,0.00019177,2]
[365442266,1749676240375,-500.0,0.00019177,2]
[365442267,1749676240384,-275.11726391,0.00019177,2]
[365442268,1749676240393,-330.692969,0.00019178,2]
[365442269,1749676240403,-490.0,0.00019178,2]
[365442270,1749676240412,-420.0,0.00019178,2]
[365442271,1749676240422,-480.0,0.00019178,2]
[365442272,1749676240431,-480.0,0.00019178,2]
[365442273,1749676240441,-480.0,0.00019178,2]
[365442274,1749676240450,-193.59266084,0.00019178,2]
[365442275,1749676240460,-463.26891791,0.00019178,2]
[365442276,1749676240470,-480.0,0.00019178,2]
[365442277,1749676240479,-480.0,0.00019178,2]
[365442278,1749676240489,-490.0,0.00019178,2]
[365442279,1749676240500,-480.0,0.00019178,2]
[365442280,1749676240510,-480.0,0.00019178,2]
[365442281,1749676240519,-306.05894639,0.00019178,2]
[365442282,1749676240529,-480.0,0.00019178,2]
[365442283,1749676240538,-480.0,0.00019178,2]
[365442284,1749676240547,-480.0,0.00019178,2]
[365442285,1749676240557,-490.0,0.00019178,2]
[365442286,1749676240566,-480.0,0.00019178,2]
[365442287,1749676240576,-480.0,0.00019178,2]
[365442288,1749676240585,-480.0,0.00019178,2]
[365442289,1749676240594,-538.51185292,0.00019178,2]
[365442290,1749676240604,-287.56761201,0.00019178,2]
[365442291,1749676240615,-490.0,0.00019178,2]
[365442292,1749676240627,-480.0,0.00019178,2]
[365442293,1749676240637,-480.0,0.00019178,2]
[365442294,1749676240646,-422.9251631,0.00019178,2]
[365442295,1749676240656,-480.0,0.00019178,2]
[365442296,1749676240667,-480.0,0.00019178,2]
[365442297,1749676240676,-460.0,0.00019178,2]
[365442298,1749676240685,-480.0,0.00019178,2]
[365442299,1749676240697,-480.0,0.00019178,2]
[365442300,1749676240707,-490.0,0.00019178,2]
[365442301,1749676240716,-490.0,0.00019178,2]
[365442302,1749676240726,-490.0,0.00019178,2]
[365442303,1749676240735,-480.0,0.00019178,2]
[365442304,1749676240745,-480.0,0.00019178,2]
[365442305,1749676240755,-490.0,0.00019178,2]
[365442306,1749676240764,-592.0089908,0.00019178,2]
[365442307,1749676240773,-490.0,0.00019178,2]
[365442308,1749676240783,-490.0,0.00019178,2]
[365442309,1749676240792,-480.0,0.00019178,2]
[365442310,1749676240801,-480.0,0.00019178,2]
[365442311,1749676240810,-480.0,0.00019178,2]
[365442312,1749676240819,-490.0,0.00019178,2]
[365442313,1749676240828,-480.0,0.00019178,2]
[365442314,1749676240837,-490.0,0.00019178,2]
[365442315,1749676240846,-490.0,0.00019178,2]
[365442316,1749676240855,-490.0,0.00019178,2]
[365442317,1749676240864,-490.0,0.00019178,2]
[365442318,1749676240873,-480.0,0.00019178,2]
[365442319,1749676240883,-490.0,0.00019178,2]
[365442320,1749676240892,-490.0,0.00019178,2]
[365442321,1749676240901,-544.36,0.00019178,2]
[365442322,1749676240910,-480.0,0.00019178,2]
[365442323,1749676240919,-490.0,0.00019178,2]
[365442324,1749676240928,-490.0,0.00019178,2]
[365442325,1749676240938,-537.17,0.00019178,2]
[365442326,1749676240947,-490.0,0.00019178,2]
[365442327,1749676240957,-490.0,0.00019178,2]
[365442328,1749676240966,-480.0,0.00019178,2]
[365442329,1749676240976,-480.0,0.00019178,2]
[365442330,1749676240986,-490.0,0.00019178,2]
[365442331,1749676240996,-429.64738309,0.00019178,2]
[365442332,1749676241006,-490.0,0.00019178,2]
[365442333,1749676241015,-482.1660645,0.00019178,2]
[365442334,1749676241025,-490.0,0.00019178,2]
[365442335,1749676241034,-490.0,0.00019178,2]
[365442336,1749676241043,-490.0,0.00019178,2]
[365442337,1749676241052,-490.0,0.00019178,2]
[365442338,1749676241062,-480.0,0.00019178,2]
[365442339,1749676241071,-480.0,0.00019178,2]
[365442340,1749676241081,-480.0,0.00019178,2]
[365442341,1749676241091,-490.0,0.00019178,2]
[365442342,1749676241101,-490.0,0.00019178,2]
[365442343,1749676241110,-490.0,0.00019178,2]
[365442344,1749676241120,-480.0,0.00019178,2]
[365442345,1749676241129,-490.0,0.00019178,2]
[365442346,1749676241138,-480.0,0.00019178,2]
[365442347,1749676241147,-480.0,0.00019178,2]
[365442348,1749676241157,-490.0,0.00019178,2]
[365442349,1749676241167,-581.42158243,0.00019178,2]
[365442350,1749676241176,-480.0,0.00019178,2]
[365442351,1749676241186,-622.45,0.00019178,2]
[365442352,1749676241195,-480.0,0.00019178,2]
[365442353,1749676241204,-317.7342154,0.00019178,2]
[365442354,1749676241213,-490.0,0.00019178,2]
[365442355,1749676241223,-402.82610311,0.00019178,2]
[365442356,1749676241231,-480.0,0.00019178,2]
[365442357,1749676241241,-490.0,0.00019178,2]
[365442358,1749676241250,-490.0,0.00019178,2]
[365442359,1749676241260,-361.00569633,0.00019178,2]
[365442360,1749676241270,-480.0,0.00019178,2]
[365442361,1749676241279,-480.0,0.00019178,2]
[365442362,1749676241289,-480.0,0.00019178,2]
[365442363,1749676241298,-480.0,0.00019178,2]
[365442364,1749676241308,-480.0,0.00019178,2]
[365442365,1749676241317,-490.0,0.00019178,2]
[365442366,1749676241327,-526.03,0.00019178,2]
[365442367,1749676241336,-480.0,0.00019178,2]
[365442368,1749676241346,-490.0,0.00019178,2]
[365442369,1749676241356,-490.0,0.00019178,2]
[365442370,1749676241366,-490.0,0.00019178,2]
[365442371,1749676241375,-193.09665702,0.00019178,2]
[365442372,1749676241385,-480.0,0.00019178,2]
[365442373,1749676241394,-500.0,0.00019178,2]
[365442374,1749676241403,-490.0,0.00019178,2]
[365442375,1749676241414,-446.89118019,0.00019178,2]
[365442376,1749676241423,-490.0,0.00019178,2]
[365442377,1749676241433,-490.0,0.00019178,2]
[365442378,1749676241442,-490.0,0.00019178,2]
[365442379,1749676241452,-490.0,0.00019178,2]
[365442380,1749676241461,-490.0,0.00019178,2]
[365442381,1749676241471,-480.0,0.00019178,2]
[365442382,1749676241673,-490.0,0.00019178,2]
[365442383,1749676241683,-490.0,0.00019178,2]
[365442384,1749676241693,-490.0,0.00019178,2]
[365442385,1749676241702,-480.0,0.00019178,2]
[365442386,1749676241712,-490.0,0.00019178,2]
[365442387,1749676241722,-490.0,0.00019178,2]
[365442388,1749676241731,-480.0,0.00019178,2]
[365442389,1749676241740,-168.98,0.00019178,2]
[365442390,1749676241750,-490.26920681,0.00019178,2]
[365442391,1749676241759,-490.0,0.00019178,2]
[365442392,1749676241768,-490.0,0.00019178,2]
[365442393,1749676241777,-490.0,0.00019178,2]
[365442394,1749676241787,-490.0,0.00019178,2]
[365442395,1749676241796,-490.0,0.00019178,2]
[365442396,1749676241805,-490.0,0.00019178,2]
[365442397,1749676241824,-490.0,0.00019178,2]
[365442398,1749676241834,-460.0,0.00019178,2]
[365442399,1749676241843,-490.0,0.00019178,2]
[365442400,1749676241852,-480.0,0.00019178,2]
[365442401,1749676241861,-490.0,0.00019178,2]
[365442402,1749676241871,-480.0,0.00019178,2]
[365442403,1749676241881,-490.0,0.00019178,2]
[365442404,1749676241890,-490.0,0.00019178,2]
[365442405,1749676241900,-490.0,0.00019178,2]
[365442406,1749676241910,-490.0,0.00019178,2]
[365442407,1749676241919,-480.0,0.00019178,2]
[365442408,1749676241929,-490.0,0.00019178,2]
[365442409,1749676241939,-480.0,0.00019178,2]
[365442410,1749676241948,-384.15702106,0.00019178,2]
[365442411,1749676241958,-490.0,0.00019178,2]
[365442412,1749676241967,-490.0,0.00019178,2]
[365442413,1749676241977,-490.0,0.00019178,2]
[365442414,1749676241987,-490.0,0.00019178,2]
[365442415,1749676241997,-490.0,0.00019178,2]
[365442416,1749676242007,-490.0,0.00019178,2]
[365442417,1749676242017,-490.0,0.00019178,2]
[365442418,1749676242027,-480.0,0.00019178,2]
[365442419,1749676242037,-286.35959521,0.00019178,2]
[365442420,1749676242047,-480.0,0.00019178,2]
[365442421,1749676242056,-480.0,0.00019178,2]
[365442422,1749676242066,-490.0,0.00019178,2]
[365442423,1749676242076,-490.0,0.00019178,2]
[365442424,1749676242085,-480.0,0.00019178,2]
[365442425,1749676242095,-490.0,0.00019178,2]
[365442426,1749676242104,-559.73,0.00019178,2]
[365442427,1749676242114,-490.0,0.00019178,2]
[365442428,1749676242124,-490.0,0.00019178,2]
[365442429,1749676242134,-490.0,0.00019178,2]
[365442430,1749676242144,-480.0,0.00019178,2]
[365442431,1749676242154,-490.0,0.00019178,2]
[365442432,1749676242164,-490.0,0.00019178,2]
[365442433,1749676242174,-490.0,0.00019178,2]
[365442434,1749676242185,-490.0,0.00019178,2]
[365442435,1749676242194,-490.0,0.00019178,2]
[365442436,1749676242204,-490.0,0.00019178,2]
[365442437,1749676242214,-480.0,0.00019178,2]
[365442438,1749676242224,-490.0,0.00019178,2]
[365442439,1749676242233,-480.0,0.00019178,2]
[365442440,1749676242244,-442.50171326,0.00019178,2]
[365442441,1749676242254,-490.0,0.00019178,2]
[365442442,1749676242263,-480.0,0.00019178,2]
[365442443,1749676242272,-490.0,0.00019178,2]
[365442444,1749676242282,-480.0,0.00019178,2]
[365442445,1749676242293,-282.8710104,0.00019178,2]
[365442446,1749676242302,-547.11,0.00019178,2]
[365442447,1749676242312,-490.0,0.00019178,2]
[365442448,1749676242322,-490.0,0.00019178,2]
[365442449,1749676242331,-490.0,0.00019178,2]
[365442450,1749676242341,-490.0,0.00019178,2]
[365442451,1749676242351,-433.49995551,0.00019178,2]
[365442452,1749676242375,-56.50004449,0.00019178,2]
[365442453,1749676242385,-480.0,0.00019178,2]
[365442454,1749676242395,-183.9790146,0.00019178,2]
[365442455,1749676242407,-306.0209854,0.00019178,2]
[365442456,1749676242416,-113.75140431,0.00019178,2]
[365442457,1749676242428,-376.24859569,0.00019178,2]
[365442458,1749676242438,-277.09140431,0.00019178,2]
[365442459,1749676242449,-212.90859569,0.00019178,2]
[365442460,1749676242459,-480.0,0.00019178,2]
[365442461,1749676242468,-427.00185746,0.00019178,2]
[365442462,1749676242478,-480.0,0.00019178,2]
[365442463,1749676242487,-490.0,0.00019178,2]
[365442464,1749676242497,-596.81,0.00019178,2]
[365442465,1749676242507,-440.0,0.00019178,2]
[365442466,1749676242516,-480.0,0.00019178,2]
[365442467,1749676242525,-490.0,0.00019178,2]
[365442468,1749676242536,-490.0,0.00019178,2]
[365442469,1749676242547,-490.0,0.00019178,2]
[365442470,1749676242557,-490.0,0.00019178,2]
[365442471,1749676242567,-480.0,0.00019178,2]
[365442472,1749676242576,-576.49,0.00019178,2]
[365442473,1749676242586,-490.0,0.00019178,2]
[365442474,1749676242595,-490.0,0.00019178,2]
[365442475,1749676242604,-351.31642526,0.00019178,2]
[365442476,1749676242615,-543.06,0.00019178,2]
[365442477,1749676242626,-490.0,0.00019178,2]
[365442478,1749676242636,-490.0,0.00019178,2]
[365442479,1749676242647,-490.0,0.00019178,2]
[365442480,1749676242657,-490.0,0.00019178,2]
[365442481,1749676242667,-490.0,0.00019178,2]
[365442482,1749676242676,-480.0,0.00019178,2]
[365442483,1749676242685,-490.0,0.00019178,2]
[365442484,1749676242697,-605.67,0.00019178,2]
[365442485,1749676242707,-349.94184768,0.00019178,2]
[365442486,1749676242721,-130.05815232,0.00019178,2]
[365442487,1749676242732,-445.03072808,0.00019178,2]
[365442488,1749676242745,-44.96927192,0.00019178,2]
[365442489,1749676242754,-490.0,0.00019178,2]
[365442490,1749676242763,-490.0,0.00019178,2]
[365442491,1749676242778,-490.0,0.00019178,2]
[365442492,1749676242799,-490.0,0.00019178,2]
[365442493,1749676242820,-490.0,0.00019178,2]
[365442494,1749676242829,-490.0,0.00019178,2]
[365442495,1749676242839,-242.28008568,0.00019178,2]
[365442496,1749676242848,-480.0,0.00019178,2]
[365442497,1749676242858,-490.0,0.00019178,2]
[365442498,1749676242867,-480.0,0.00019178,2]
[365442499,1749676242876,-480.0,0.00019178,2]
[365442500,1749676242886,-480.0,0.00019178,2]
[365442501,1749676242895,-512.42,0.00019178,2]
[365442502,1749676242905,-657.53,0.00019178,2]
[365442503,1749676242914,-480.0,0.00019178,2]
[365442504,1749676242923,-480.0,0.00019178,2]
[365442505,1749676242932,-490.0,0.00019178,2]
[365442506,1749676242942,-490.0,0.00019178,2]
[365442507,1749676242951,-480.0,0.00019178,2]
[365442508,1749676242960,-490.0,0.00019178,2]
[365442509,1749676242970,-490.0,0.00019178,2]
[365442510,1749676242980,-480.0,0.00019178,2]
[365442512,1749676242989,-480.0,0.00019178,2]
[365442514,1749676243000,-490.0,0.00019178,2]
[365442516,1749676243009,-439.5570443,0.00019178,2]
[365442518,1749676243018,-490.0,0.00019178,2]
[365442520,1749676243028,-490.0,0.00019178,2]
[365442522,1749676243037,-490.0,0.00019178,2]
[365442524,1749676243047,-493.75,0.00019178,2]
[365442526,1749676243056,-490.0,0.00019178,2]
[365442528,1749676243065,-490.0,0.00019178,2]
[365442530,1749676243075,-490.0,0.00019178,2]
[365442532,1749676243084,-700.630762,0.00019178,2]
[365442534,1749676243093,-490.0,0.00019178,2]
[365442536,1749676243103,-480.0,0.00019178,2]
[365442538,1749676243112,-158.245676,0.00019178,2]
[365442540,1749676243121,-490.0,0.00019178,2]
[365442542,1749676243131,-490.0,0.00019178,2]
[365442544,1749676243140,-420.09452971,0.00019178,2]
[365442546,1749676243150,-490.0,0.00019178,2]
[365442548,1749676243159,-161.867731,0.00019178,2]
[365442550,1749676243169,-490.0,0.00019178,2]
[365442551,1749676243178,-490.0,0.00019178,2]
[365442552,1749676243192,-490.0,0.00019178,2]
[365442553,1749676243204,-185.2001464,0.00019178,2]
[365442554,1749676243214,-490.0,0.00019178,2]
[365442555,1749676243224,-969.25,0.00019178,2]
[365442556,1749676243233,-490.0,0.00019178,2]
[365442557,1749676243244,-311.17621295,0.00019178,2]
[365442558,1749676243254,-490.0,0.00019178,2]
[365442559,1749676243263,-500.71,0.00019178,2]
[365442560,1749676243272,-480.0,0.00019178,2]
[365442561,1749676243281,-490.0,0.00019178,2]
[365442562,1749676243290,-490.0,0.00019178,2]
[365442563,1749676243299,-490.0,0.00019178,2]
[365442564,1749676243308,-490.0,0.00019178,2]
[365442565,1749676243317,-490.0,0.00019178,2]
[365442566,1749676243326,-881.881289,0.00019178,2]
[365442567,1749676243336,-490.0,0.00019178,2]
[365442568,1749676243345,-480.0,0.00019178,2]
[365442569,1749676243355,-490.0,0.00019178,2]
[365442570,1749676243364,-490.0,0.00019178,2]
[365442571,1749676243373,-490.0,0.00019178,2]
[365442572,1749676243383,-112.85938623,0.00019178,2]
[365442573,1749676243409,-377.14061377,0.00019178,2]
[365442574,1749676243418,-413.67973522,0.00019178,2]
[365442575,1749676243427,-480.0,0.00019178,2]
[365442576,1749676243436,-490.0,0.00019178,2]
[365442577,1749676243449,-480.0,0.00019178,2]
[365442578,1749676243458,-490.0,0.00019178,2]
[365442579,1749676243467,-490.0,0.00019178,2]
[365442580,1749676243476,-420.0,0.00019178,2]
[365442581,1749676243485,-480.0,0.00019178,2]
[365442582,1749676243494,-480.0,0.00019178,2]
[365442583,1749676243503,-490.0,0.00019178,2]
[365442584,1749676243513,-480.0,0.00019178,2]
[365442585,1749676243521,-555.04704082,0.00019178,2]
[365442586,1749676243530,-490.0,0.00019178,2]
[365442587,1749676243539,-480.0,0.00019178,2]
[365442588,1749676243549,-490.0,0.00019178,2]
[365442589,1749676243558,-400.58346994,0.00019178,2]
[365442590,1749676243567,-480.0,0.00019178,2]
[365442591,1749676243576,-480.0,0.00019178,2]
[365442592,1749676243585,-480.0,0.00019178,2]
[365442593,1749676243595,-420.0,0.00019178,2]
[365442594,1749676243605,-461.08568095,0.00019178,2]
[365442595,1749676243615,-480.0,0.00019178,2]
[365442596,1749676243626,-490.0,0.00019178,2]
[365442597,1749676243636,-480.0,0.00019178,2]
[365442598,1749676243645,-490.0,0.00019178,2]
[365442599,1749676243655,-421.03770656,0.00019178,2]
[365442600,1749676243664,-490.0,0.00019178,2]
[365442601,1749676243674,-490.0,0.00019178,2]
[365442602,1749676243683,-480.0,0.00019178,2]
[365442603,1749676243693,-480.0,0.00019178,2]
[365442604,1749676243703,-480.0,0.00019178,2]
[365442605,1749676243712,-490.0,0.00019178,2]
[365442606,1749676243721,-480.0,0.00019178,2]
[365442607,1749676243731,-490.0,0.00019178,2]
[365442608,1749676243740,-480.0,0.00019178,2]
[365442609,1749676243751,-480.0,0.00019178,2]
[365442610,1749676243760,-490.0,0.00019178,2]
[365442611,1749676243770,-490.0,0.00019178,2]
[365442612,1749676243779,-480.0,0.00019178,2]
[365442613,1749676243789,-490.0,0.00019178,2]
[365442614,1749676243798,-607.95,0.00019178,2]
[365442615,1749676243807,-624.06175996,0.00019178,2]
[365442616,1749676243816,-480.0,0.00019178,2]
[365442617,1749676243825,-396.21188694,0.00019178,2]
[365442618,1749676243834,-490.0,0.00019178,2]
[365442619,1749676243843,-480.0,0.00019178,2]
[365442620,1749676243852,-629.14,0.00019178,2]
[365442621,1749676243861,-498.21800249,0.00019178,2]
[365442622,1749676243871,-490.0,0.00019178,2]
[365442623,1749676243882,-460.0,0.00019178,2]
[365442624,1749676243891,-490.0,0.00019178,2]
[365442625,1749676243900,-413.28698859,0.00019178,2]
[365442626,1749676243908,-490.0,0.00019178,2]
[365442627,1749676243918,-549.34288642,0.00019178,2]
[365442628,1749676243927,-490.0,0.00019178,2]
[365442629,1749676243936,-480.0,0.00019178,2]
[365442630,1749676243945,-1000.0,0.00019178,2]
[365442631,1749676243955,-621.02,0.00019178,2]
[365442632,1749676243964,-480.0,0.00019178,2]
[365442633,1749676243973,-420.0,0.00019178,2]
[365442634,1749676243982,-480.0,0.00019178,2]
[365442635,1749676243991,-490.0,0.00019178,2]
[365442636,1749676244002,-480.0,0.00019178,2]
[365442637,1749676244011,-480.0,0.00019178,2]
[365442638,1749676244020,-490.0,0.00019178,2]
[365442639,1749676244030,-490.0,0.00019178,2]
[365442640,1749676244039,-421.55809701,0.00019178,2]
[365442641,1749676244048,-260.01915101,0.00019178,2]
[365442642,1749676244058,-490.0,0.00019178,2]
[365442643,1749676244067,-490.0,0.00019178,2]
[365442644,1749676244077,-1000.0,0.00019178,2]
[365442645,1749676244086,-490.0,0.00019178,2]
[365442646,1749676244096,-480.0,0.00019178,2]
[365442647,1749676244105,-490.0,0.00019178,2]
[365442648,1749676244165,-480.0,0.00019178,2]
[365442649,1749676244174,-490.0,0.00019178,2]
[365442650,1749676244184,-490.0,0.00019178,2]